[Event "*** Titled Tuesday 3|2 Blitz"]
[Site "Chess.com"]
[Date "2015.12.01"]
[Round "3"]
[White "ZEN-22"]
[Black "Moltini"]
[Result "1-0"]
[WhiteElo "2259"]
[BlackElo "2160"]
[TimeControl "180+2"]
[EndTime "11:36:38 PST"]
[Termination "ZEN-22 won by resignation"]

1. e4 {[%clk 0:03:01.9]} 1... c5 {[%clk 0:03:00.5]} 2. b4 {[%clk 0:03:01.9]}
2... cxb4 {[%clk 0:03:01.1]} 3. a3 {[%clk 0:03:03]} 3... bxa3 {[%clk 0:03:00.6]}
4. Nc3 {[%clk 0:03:02.9]} 4... e6 {[%clk 0:03:00.6]} 5. Nf3 {[%clk 0:03:01.6]}
5... Nc6 {[%clk 0:03:01.4]} 6. Bxa3 {[%clk 0:02:48.2]} 6... Bxa3 {[%clk
0:03:00.3]} 7. Rxa3 {[%clk 0:02:50.1]} 7... a6 {[%clk 0:03:01.6]} 8. d4 {[%clk
0:02:50.4]} 8... Qe7 {[%clk 0:02:57.9]} 9. Qa1 {[%clk 0:02:48.3]} 9... Nf6
{[%clk 0:02:58.3]} 10. Bd3 {[%clk 0:02:45.9]} 10... d6 {[%clk 0:02:57.2]} 11.
O-O {[%clk 0:02:36.1]} 11... O-O {[%clk 0:02:58.2]} 12. Re1 {[%clk 0:02:31.5]}
12... Bd7 {[%clk 0:02:55.8]} 13. e5 {[%clk 0:02:30.7]} 13... dxe5 {[%clk
0:02:56.4]} 14. dxe5 {[%clk 0:02:31.6]} 14... Nd5 {[%clk 0:02:54.9]} 15. Nxd5
{[%clk 0:02:32.3]} 15... exd5 {[%clk 0:02:55.8]} 16. Ra4 {[%clk 0:02:25.3]}
16... Nb4 {[%clk 0:02:31.8]} 17. Ra3 {[%clk 0:02:02.1]} 17... Rac8 {[%clk
0:02:30.5]} 18. Rc3 {[%clk 0:01:52.5]} 18... Be6 {[%clk 0:02:22.6]} 19. Rxc8
{[%clk 0:01:50.4]} 19... Rxc8 {[%clk 0:02:23]} 20. Nd4 {[%clk 0:01:46.2]} 20...
Qc5 {[%clk 0:02:15.5]} 21. Rb1 {[%clk 0:01:27.5]} 21... Nxd3 {[%clk 0:01:56]}
22. cxd3 {[%clk 0:01:27.7]} 22... Rc7 {[%clk 0:01:57.3]} 23. h3 {[%clk
0:01:24.1]} 23... h6 {[%clk 0:01:57.9]} 24. Kh2 {[%clk 0:01:23.7]} 24... Bd7
{[%clk 0:01:31.8]} 25. f4 {[%clk 0:01:19.7]} 25... a5 {[%clk 0:01:21.9]} 26. f5
{[%clk 0:01:03.9]} 26... a4 {[%clk 0:01:22.3]} 27. e6 {[%clk 0:01:04]} 27...
fxe6 {[%clk 0:01:23]} 28. fxe6 {[%clk 0:01:03.9]} 28... Bxe6 {[%clk 0:01:17.1]}
29. Nxe6 {[%clk 0:00:51.2]} 29... Qd6+ {[%clk 0:01:17.6]} 30. Kh1 {[%clk
0:00:52.6]} 30... Qxe6 {[%clk 0:01:18.9]} 31. Qxa4 {[%clk 0:00:53.9]} 31... Qf5
{[%clk 0:01:15]} 32. Qe8+ {[%clk 0:00:47.5]} 32... Kh7 {[%clk 0:01:15.9]} 33.
Qe3 {[%clk 0:00:47.7]} 33... Rd7 {[%clk 0:01:04.6]} 34. Rb5 {[%clk 0:00:40.4]}
34... d4 {[%clk 0:00:38.6]} 35. Qxh6+ {[%clk 0:00:40.5]} 35... Kxh6 {[%clk
0:00:37.6]} 36. Rxf5 {[%clk 0:00:42.4]} 36... Kg6 {[%clk 0:00:36.3]} 37. Rb5
{[%clk 0:00:42.6]} 37... Kf6 {[%clk 0:00:37.5]} 38. h4 {[%clk 0:00:43]} 38...
Ke6 {[%clk 0:00:38.2]} 39. g4 {[%clk 0:00:36.2]} 39... Kd6 {[%clk 0:00:39.3]}
40. Kg2 {[%clk 0:00:34.8]} 40... Kc6 {[%clk 0:00:40.6]} 41. Rb4 {[%clk
0:00:30.7]} 41... Kc5 {[%clk 0:00:40.1]} 42. Rc4+ {[%clk 0:00:30.9]} 42... Kd5
{[%clk 0:00:40.6]} 43. Rb4 {[%clk 0:00:31.9]} 43... Re7 {[%clk 0:00:38.1]} 44.
Kf3 {[%clk 0:00:28.3]} 44... g6 {[%clk 0:00:36.8]} 45. Kf4 {[%clk 0:00:28.8]}
45... Kc5 {[%clk 0:00:34.6]} 46. Rb3 {[%clk 0:00:22]} 46... b5 {[%clk
0:00:34.2]} 47. Kg5 {[%clk 0:00:21.9]} 47... Re6 {[%clk 0:00:35.2]} 48. Rb1
{[%clk 0:00:22]} 48... b4 {[%clk 0:00:35.9]} 49. Rb2 {[%clk 0:00:10.9]} 49...
Kb5 {[%clk 0:00:32.7]} 50. h5 {[%clk 0:00:10]} 50... gxh5 {[%clk 0:00:33.4]} 51.
gxh5 {[%clk 0:00:11.9]} 51... Re3 {[%clk 0:00:34.1]} 52. Rd2 {[%clk 0:00:11.2]}
52... b3 {[%clk 0:00:33.7]} 53. h6 {[%clk 0:00:12.2]} 53... Rg3+ {[%clk
0:00:34.2]} 54. Kf6 {[%clk 0:00:12.6]} 54... Kb4 {[%clk 0:00:31.9]} 55. Rh2
{[%clk 0:00:11.5]} 55... Rxd3 {[%clk 0:00:29.8]} 56. h7 {[%clk 0:00:11.2]} 56...
Rf3+ {[%clk 0:00:31]} 57. Ke7 {[%clk 0:00:12.4]} 57... Re3+ {[%clk 0:00:32.3]}
58. Kd7 {[%clk 0:00:13.7]} 58... Kc3 {[%clk 0:00:31.9]} 59. h8=Q {[%clk
0:00:13.9]} 59... Kc4 {[%clk 0:00:29.2]} 60. Qg8+ {[%clk 0:00:12.6]} 60... Kc5
{[%clk 0:00:29.3]} 61. Qc8+ {[%clk 0:00:13.2]} 61... Kb4 {[%clk 0:00:30.6]} 62.
Qb7+ {[%clk 0:00:13.5]} 62... Kc3 {[%clk 0:00:32]} 63. Qc6+ {[%clk 0:00:14.1]}
63... Kd3 {[%clk 0:00:33.4]} 64. Qb5+ {[%clk 0:00:14.8]} 64... Ke4 {[%clk
0:00:34.8]} 65. Rh4+ {[%clk 0:00:13.4]} 65... Kf3 {[%clk 0:00:36.2]} 66. Qf1+
{[%clk 0:00:14.8]} 66... Kg3 {[%clk 0:00:36.9]} 67. Rh3+ {[%clk 0:00:14.1]}
67... Kg4 {[%clk 0:00:37.1]} 68. Rxe3 {[%clk 0:00:13.9]} 68... dxe3 {[%clk
0:00:38.4]} 69. Qd3 {[%clk 0:00:13.9]} 69... Kf3 {[%clk 0:00:38.9]} 70. Qxb3
{[%clk 0:00:15.1]} 70... Kf2 {[%clk 0:00:40.5]} 71. Qb6 {[%clk 0:00:15.9]} 71...
Kf3 {[%clk 0:00:40.8]} 72. Qc6+ {[%clk 0:00:16]} 72... Kf2 {[%clk 0:00:41.8]}
73. Qc5 {[%clk 0:00:17.2]} 73... Kf3 {[%clk 0:00:42.5]} 74. Qd5+ {[%clk
0:00:16]} 74... Kf2 {[%clk 0:00:43.7]} 75. Qd4 {[%clk 0:00:16.8]} 75... Kf3
{[%clk 0:00:45.2]} 76. Qd3 {[%clk 0:00:15]} 76... Kf2 {[%clk 0:00:46.3]} 77.
Qf5+ {[%clk 0:00:16]} 77... Ke1 {[%clk 0:00:47.5]} 78. Ke6 {[%clk 0:00:15.8]}
78... e2 {[%clk 0:00:48.9]} 79. Qd3 {[%clk 0:00:12.5]} 79... Kf2 {[%clk
0:00:50.1]} 80. Qd4+ {[%clk 0:00:12.6]} 80... Kf1 {[%clk 0:00:50.4]} 81. Qf4+
{[%clk 0:00:13.4]} 81... Kg2 {[%clk 0:00:50.3]} 82. Qe3 {[%clk 0:00:13.7]} 82...
Kf1 {[%clk 0:00:51.5]} 83. Qf3+ {[%clk 0:00:15.3]} 83... Ke1 {[%clk 0:00:53]}
84. Ke5 {[%clk 0:00:17.2]} 84... Kd2 {[%clk 0:00:54.5]} 85. Qf4+ {[%clk
0:00:18.2]} 85... Kd3 {[%clk 0:00:55.6]} 86. Qc1 {[%clk 0:00:17.9]} 1-0

[Event "*** Titled Tuesday 3|2 Blitz"]
[Site "Chess.com"]
[Date "2015.12.01"]
[Round "3"]
[White "stepanosinovsky"]
[Black "BjarkeSahl"]
[Result "1/2-1/2"]
[WhiteElo "2194"]
[BlackElo "2144"]
[TimeControl "180+2"]
[EndTime "11:36:44 PST"]
[Termination "Game drawn by agreement"]

1. Nf3 {[%clk 0:03:01.9]} 1... f5 {[%clk 0:03:00]} 2. g3 {[%clk 0:03:03.8]} 2...
Nf6 {[%clk 0:03:01.1]} 3. Bg2 {[%clk 0:03:05.7]} 3... g6 {[%clk 0:03:02.8]} 4.
O-O {[%clk 0:03:07.6]} 4... Bg7 {[%clk 0:03:04.4]} 5. d3 {[%clk 0:03:09.2]} 5...
O-O {[%clk 0:03:06]} 6. Nbd2 {[%clk 0:03:10.8]} 6... d6 {[%clk 0:03:07]} 7. e4
{[%clk 0:03:11.8]} 7... e5 {[%clk 0:03:08.1]} 8. c3 {[%clk 0:03:09.8]} 8... c5
{[%clk 0:03:08.7]} 9. a3 {[%clk 0:03:01.9]} 9... a5 {[%clk 0:03:05]} 10. d4
{[%clk 0:02:58.4]} 10... cxd4 {[%clk 0:03:00.4]} 11. cxd4 {[%clk 0:02:59.2]}
11... Nc6 {[%clk 0:02:49.8]} 12. dxe5 {[%clk 0:02:44]} 12... dxe5 {[%clk
0:02:48.2]} 13. Qb3+ {[%clk 0:02:39.5]} 13... Kh8 {[%clk 0:02:48.2]} 14. Ng5
{[%clk 0:02:40.5]} 14... Qe7 {[%clk 0:02:43.1]} 15. Ndf3 {[%clk 0:02:41.2]}
15... h6 {[%clk 0:02:37]} 16. Nh4 {[%clk 0:02:40]} 16... Qe8 {[%clk 0:02:29.2]}
17. exf5 {[%clk 0:02:33.4]} 17... gxf5 {[%clk 0:02:21.9]} 18. Bxc6 {[%clk
0:01:41.1]} 18... bxc6 {[%clk 0:02:13.5]} 19. Ngf3 {[%clk 0:01:30.4]} 19... e4
{[%clk 0:01:52.5]} 20. Nd4 {[%clk 0:01:21.2]} 20... Ng4 {[%clk 0:01:44.4]} 21.
Be3 {[%clk 0:00:41.8]} 21... Ne5 {[%clk 0:01:23.2]} 22. Rac1 {[%clk 0:00:22.2]}
22... Qh5 {[%clk 0:01:11]} 23. f4 {[%clk 0:00:15.8]} 23... exf3 {[%clk
0:01:02.5]} 24. Ndxf3 {[%clk 0:00:15.7]} 24... Nxf3+ {[%clk 0:00:54.3]} 25. Nxf3
{[%clk 0:00:16.6]} 25... f4 {[%clk 0:00:55.5]} 26. Bxf4 {[%clk 0:00:16.3]} 26...
Bg4 {[%clk 0:00:38]} 27. Rce1 {[%clk 0:00:15.2]} 27... Rf7 {[%clk 0:00:30.5]}
28. Ne5 {[%clk 0:00:16]} 28... Rxf4 {[%clk 0:00:28]} 29. Rxf4 {[%clk 0:00:16]}
29... Bxe5 {[%clk 0:00:27.8]} 30. Rxg4 {[%clk 0:00:14]} 30... Qxg4 {[%clk
0:00:28.7]} 31. Rxe5 {[%clk 0:00:14.6]} 31... Rd8 {[%clk 0:00:24.9]} 32. Qc3
{[%clk 0:00:14.1]} 32... Kg8 {[%clk 0:00:21.2]} 33. Qb3+ {[%clk 0:00:13.3]}
33... Kh8 {[%clk 0:00:21.6]} 34. Qc3 {[%clk 0:00:14.3]} 34... Kg8 {[%clk
0:00:22.4]} 35. Re1 {[%clk 0:00:15.1]} 35... c5 {[%clk 0:00:17.8]} 36. Qe3
{[%clk 0:00:15.8]} 36... Qd4 {[%clk 0:00:18.3]} 37. Qxd4 {[%clk 0:00:16]} 37...
cxd4 {[%clk 0:00:19.8]} 38. Kf2 {[%clk 0:00:16.6]} 38... Kg7 {[%clk 0:00:21.3]}
39. Ke2 {[%clk 0:00:17.6]} 39... Rb8 {[%clk 0:00:20.7]} 40. Rb1 {[%clk
0:00:18.5]} 40... Rb3 {[%clk 0:00:21.8]} 41. Kd2 {[%clk 0:00:19.8]} 41... Kf6
{[%clk 0:00:22.8]} 42. Kc2 {[%clk 0:00:20.5]} 42... a4 {[%clk 0:00:24.4]} 43.
Rd1 {[%clk 0:00:21.1]} 43... Ke5 {[%clk 0:00:25.9]} 44. Re1+ {[%clk 0:00:22.1]}
44... Kd5 {[%clk 0:00:26.6]} 45. Re8 {[%clk 0:00:21.5]} 45... Rf3 {[%clk
0:00:27.5]} 46. Rh8 {[%clk 0:00:21.2]} 46... Rf2+ {[%clk 0:00:27.9]} 47. Kd3
{[%clk 0:00:22.6]} 47... Rxh2 {[%clk 0:00:28.8]} 48. Rd8+ {[%clk 0:00:23.6]}
48... Kc5 {[%clk 0:00:27.5]} 49. Rc8+ {[%clk 0:00:24.7]} 49... Kd5 {[%clk
0:00:27.1]} 50. Rd8+ {[%clk 0:00:25.6]} 50... Kc5 {[%clk 0:00:22.3]} 51. Rxd4
{[%clk 0:00:18.1]} 51... Rxb2 {[%clk 0:00:22.3]} 52. Rxa4 {[%clk 0:00:12.5]}
52... Rb3+ {[%clk 0:00:23]} 53. Ke4 {[%clk 0:00:12.9]} 53... Rxg3 {[%clk
0:00:24.2]} 54. Ra8 {[%clk 0:00:14.5]} 54... Kb6 {[%clk 0:00:22.3]} 55. Kd5
{[%clk 0:00:15.1]} 55... Rg1 {[%clk 0:00:21.3]} 56. Kc4 {[%clk 0:00:14.9]} 56...
Ra1 {[%clk 0:00:21.1]} 57. Kb4 {[%clk 0:00:15.8]} 57... h5 {[%clk 0:00:21.9]}
58. Rh8 {[%clk 0:00:16.3]} 58... Rh1 {[%clk 0:00:21.8]} 59. Rh6+ {[%clk
0:00:17.5]} 59... Kb7 {[%clk 0:00:22.3]} 60. a4 {[%clk 0:00:18.7]} 60... h4
{[%clk 0:00:21.3]} 61. Kb5 {[%clk 0:00:19.6]} 61... Rb1+ {[%clk 0:00:21.1]} 62.
Ka5 {[%clk 0:00:20.5]} 62... Rh1 {[%clk 0:00:21.6]} 63. Rh7+ {[%clk 0:00:21.7]}
63... Ka8 {[%clk 0:00:22.8]} 64. Kb6 {[%clk 0:00:22.1]} 64... Rb1+ {[%clk
0:00:21.7]} 65. Ka6 {[%clk 0:00:23.3]} 65... Rb4 {[%clk 0:00:22.1]} 66. Rh8+
{[%clk 0:00:21.5]} 66... Rb8 {[%clk 0:00:23.6]} 67. Rxh4 {[%clk 0:00:22.6]}
67... Rf8 {[%clk 0:00:23.1]} 68. Rh6 {[%clk 0:00:23.8]} 68... Rg8 {[%clk
0:00:22.9]} 69. Kb6 {[%clk 0:00:25.1]} 69... Rf8 {[%clk 0:00:24.4]} 70. a5
{[%clk 0:00:26.1]} 70... Rb8+ {[%clk 0:00:25]} 71. Ka6 {[%clk 0:00:27]} 71...
Rg8 {[%clk 0:00:26.5]} 72. Rh7 {[%clk 0:00:27.7]} 72... Rf8 {[%clk 0:00:27.2]}
73. Rb7 {[%clk 0:00:26.9]} 73... Rf6+ {[%clk 0:00:26.8]} 74. Rb6 {[%clk
0:00:28.2]} 74... Rf5 {[%clk 0:00:28.3]} 75. Rc6 {[%clk 0:00:28.3]} 75... Rf8
{[%clk 0:00:28.7]} 76. Rb6 {[%clk 0:00:28.8]} 76... Rf5 {[%clk 0:00:27.9]} 77.
Rd6 {[%clk 0:00:29.1]} 77... Rf8 {[%clk 0:00:28.8]} 78. Re6 {[%clk 0:00:30.2]}
78... Rg8 {[%clk 0:00:29.2]} 79. Kb6 {[%clk 0:00:31.3]} 79... Rb8+ {[%clk
0:00:29.5]} 80. Kc6 {[%clk 0:00:31.4]} 80... Ka7 {[%clk 0:00:29.8]} 81. Re5
{[%clk 0:00:27.7]} 81... Ka6 {[%clk 0:00:30.2]} 82. Rh5 {[%clk 0:00:27.8]} 82...
Rc8+ {[%clk 0:00:31]} 83. Kd7 {[%clk 0:00:28.9]} 83... Rc1 {[%clk 0:00:31.3]}
1/2-1/2

[Event "*** Titled Tuesday 3|2 Blitz"]
[Site "Chess.com"]
[Date "2015.12.01"]
[Round "3"]
[White "FrankieJay"]
[Black "chessdude"]
[Result "0-1"]
[WhiteElo "2136"]
[BlackElo "2287"]
[TimeControl "180+2"]
[EndTime "11:39:33 PST"]
[Termination "chessdude won by resignation"]

1. e4 {[%clk 0:03:01.9]} 1... e5 {[%clk 0:02:58.4]} 2. Nf3 {[%clk 0:03:02.9]}
2... Nc6 {[%clk 0:02:59.8]} 3. Bb5 {[%clk 0:03:04.1]} 3... a6 {[%clk 0:03:01.1]}
4. Ba4 {[%clk 0:03:05.6]} 4... Nf6 {[%clk 0:03:02.2]} 5. O-O {[%clk 0:03:05.6]}
5... Be7 {[%clk 0:03:03.5]} 6. Re1 {[%clk 0:03:05.9]} 6... b5 {[%clk 0:03:04.5]}
7. Bb3 {[%clk 0:03:07.3]} 7... O-O {[%clk 0:03:05.7]} 8. c3 {[%clk 0:03:08.4]}
8... d6 {[%clk 0:03:04.2]} 9. h3 {[%clk 0:03:09.2]} 9... Nb8 {[%clk 0:03:04.7]}
10. d4 {[%clk 0:03:09.9]} 10... Nbd7 {[%clk 0:03:06]} 11. Nbd2 {[%clk
0:03:09.5]} 11... Bb7 {[%clk 0:03:07.3]} 12. Bc2 {[%clk 0:03:08.4]} 12... Re8
{[%clk 0:03:07.9]} 13. Nf1 {[%clk 0:03:08.8]} 13... Bf8 {[%clk 0:03:09.2]} 14.
Ng3 {[%clk 0:03:08.8]} 14... g6 {[%clk 0:03:10.5]} 15. a4 {[%clk 0:02:52]} 15...
c5 {[%clk 0:03:11.1]} 16. d5 {[%clk 0:02:41.3]} 16... c4 {[%clk 0:03:12]} 17.
Bg5 {[%clk 0:02:38.4]} 17... h6 {[%clk 0:03:12.3]} 18. Be3 {[%clk 0:02:38.4]}
18... Nc5 {[%clk 0:03:13.3]} 19. axb5 {[%clk 0:02:15.3]} 19... axb5 {[%clk
0:03:13]} 20. Qd2 {[%clk 0:02:14.9]} 20... h5 {[%clk 0:03:12]} 21. Bg5 {[%clk
0:02:06.9]} 21... Be7 {[%clk 0:03:13.1]} 22. Qe3 {[%clk 0:01:39.9]} 22... Qc7
{[%clk 0:03:08]} 23. Nh4 {[%clk 0:01:33.1]} 23... Nh7 {[%clk 0:03:05.3]} 24.
Bxe7 {[%clk 0:01:23.2]} 24... Qxe7 {[%clk 0:03:06.1]} 25. Nf3 {[%clk 0:01:17.5]}
25... Qf6 {[%clk 0:03:06]} 26. h4 {[%clk 0:01:14.7]} 26... Reb8 {[%clk
0:02:39.4]} 27. Ng5 {[%clk 0:01:02.7]} 27... Bc8 {[%clk 0:02:30.9]} 28. Rf1
{[%clk 0:00:57.8]} 28... Nxg5 {[%clk 0:01:45.9]} 29. hxg5 {[%clk 0:00:58.7]}
29... Qe7 {[%clk 0:01:40.6]} 30. f4 {[%clk 0:00:56]} 30... exf4 {[%clk
0:01:39.8]} 31. Qxf4 {[%clk 0:00:56.8]} 31... Rxa1 {[%clk 0:01:40.3]} 32. Rxa1
{[%clk 0:00:58.2]} 32... Bb7 {[%clk 0:01:39.1]} 33. Re1 {[%clk 0:00:51.2]} 33...
Nd7 {[%clk 0:01:38.4]} 34. Ne2 {[%clk 0:00:44]} 34... Qe5 {[%clk 0:01:38.3]} 35.
Qxe5 {[%clk 0:00:29.5]} 35... Nxe5 {[%clk 0:01:39.3]} 36. Nd4 {[%clk 0:00:31]}
36... Bc8 {[%clk 0:01:29.8]} 37. Ra1 {[%clk 0:00:27.6]} 37... Bd7 {[%clk
0:01:13.7]} 38. Ra7 {[%clk 0:00:27.8]} 38... b4 {[%clk 0:01:10.2]} 39. Ba4
{[%clk 0:00:21]} 39... bxc3 {[%clk 0:01:02.1]} 40. bxc3 {[%clk 0:00:22.6]} 40...
Bxa4 {[%clk 0:00:56.9]} 41. Rxa4 {[%clk 0:00:23.1]} 41... Rb1+ {[%clk
0:00:45.3]} 42. Kf2 {[%clk 0:00:23.2]} 42... Rc1 {[%clk 0:00:38.9]} 43. Nb5
{[%clk 0:00:15.3]} 43... Rc2+ {[%clk 0:00:38.6]} 44. Kf1 {[%clk 0:00:14.3]}
44... Ng4 {[%clk 0:00:36.8]} 45. Nxd6 {[%clk 0:00:10.9]} 45... Ne3+ {[%clk
0:00:36.7]} 46. Kg1 {[%clk 0:00:12.2]} 46... Rxg2+ {[%clk 0:00:37.1]} 47. Kh1
{[%clk 0:00:13.5]} 47... Rc2 {[%clk 0:00:19.2]} 48. Ra8+ {[%clk 0:00:14.9]}
48... Kg7 {[%clk 0:00:20]} 49. Ne8+ {[%clk 0:00:16.2]} 49... Kf8 {[%clk
0:00:20.5]} 50. Nf6+ {[%clk 0:00:17.9]} 50... Ke7 {[%clk 0:00:20.9]} 51. e5
{[%clk 0:00:19]} 51... Rc1+ {[%clk 0:00:20.5]} 52. Kh2 {[%clk 0:00:20.5]} 52...
Ng4+ {[%clk 0:00:21.8]} 53. Nxg4 {[%clk 0:00:21.7]} 53... hxg4 {[%clk
0:00:23.3]} 54. Ra7+ {[%clk 0:00:23.3]} 54... Ke8 {[%clk 0:00:24.7]} 55. d6
{[%clk 0:00:20]} 55... Rxc3 {[%clk 0:00:23.1]} 56. Ra8+ {[%clk 0:00:21.1]} 56...
Kd7 {[%clk 0:00:24.1]} 57. Ra7+ {[%clk 0:00:22.5]} 57... Ke8 {[%clk 0:00:22.5]}
58. Ra8+ {[%clk 0:00:20.8]} 58... Kd7 {[%clk 0:00:23.2]} 59. Rf8 {[%clk
0:00:21]} 59... Rf3 {[%clk 0:00:20.6]} 60. Ra8 {[%clk 0:00:21.3]} 60... c3
{[%clk 0:00:12.6]} 61. Ra7+ {[%clk 0:00:23.2]} 61... Ke8 {[%clk 0:00:13.5]} 62.
Rc7 {[%clk 0:00:23.1]} 62... g3+ {[%clk 0:00:11.8]} 63. Kg2 {[%clk 0:00:23.2]}
63... Re3 {[%clk 0:00:13.2]} 64. Rc8+ {[%clk 0:00:16.1]} 64... Kd7 {[%clk
0:00:14.4]} 65. Rc7+ {[%clk 0:00:18]} 65... Kd8 {[%clk 0:00:15.8]} 66. Rxf7
{[%clk 0:00:16.3]} 66... Rxe5 {[%clk 0:00:16.7]} 67. Rc7 {[%clk 0:00:17.1]}
67... Re3 {[%clk 0:00:16.7]} 68. Kg1 {[%clk 0:00:14.5]} 68... Rd3 {[%clk
0:00:17.7]} 69. Kg2 {[%clk 0:00:15.5]} 69... Ke8 {[%clk 0:00:16.3]} 70. Kg1
{[%clk 0:00:15.7]} 70... Kd8 {[%clk 0:00:16.7]} 71. Kg2 {[%clk 0:00:16.1]} 71...
Ke8 {[%clk 0:00:14.9]} 72. Kg1 {[%clk 0:00:17]} 72... Rxd6 {[%clk 0:00:16.1]}
73. Rxc3 {[%clk 0:00:17.5]} 73... Ke7 {[%clk 0:00:16.5]} 74. Rxg3 {[%clk
0:00:18.2]} 74... Rd5 {[%clk 0:00:18]} 75. Kg2 {[%clk 0:00:19.1]} 75... Ke6
{[%clk 0:00:19.4]} 76. Kh3 {[%clk 0:00:20.2]} 76... Kf5 {[%clk 0:00:20.8]} 77.
Kh4 {[%clk 0:00:18.6]} 77... Rd4+ {[%clk 0:00:20.1]} 78. Kh3 {[%clk 0:00:19.8]}
78... Rd1 {[%clk 0:00:21.2]} 79. Rg2 {[%clk 0:00:18.3]} 79... Rh1+ {[%clk
0:00:21.3]} 80. Rh2 {[%clk 0:00:16]} 80... Rf1 {[%clk 0:00:20.9]} 81. Rg2 {[%clk
0:00:16.8]} 81... Rf3+ {[%clk 0:00:21.8]} 82. Kh2 {[%clk 0:00:18]} 82... Ra3
{[%clk 0:00:20.4]} 83. Rg1 {[%clk 0:00:18.7]} 83... Kf4 {[%clk 0:00:20.1]} 84.
Rg2 {[%clk 0:00:19.8]} 84... Rb3 {[%clk 0:00:20.6]} 85. Rg1 {[%clk 0:00:20.1]}
85... Rb8 {[%clk 0:00:21.2]} 86. Rg2 {[%clk 0:00:17.6]} 86... Rh8+ {[%clk
0:00:21.8]} 87. Kg1 {[%clk 0:00:19.1]} 87... Rh3 {[%clk 0:00:20.5]} 88. Kf2
{[%clk 0:00:20]} 88... Rf3+ {[%clk 0:00:20]} 89. Ke2 {[%clk 0:00:20.8]} 89...
Ra3 {[%clk 0:00:20.7]} 90. Rf2+ {[%clk 0:00:15.8]} 90... Kxg5 {[%clk 0:00:19.6]}
91. Rg2+ {[%clk 0:00:16]} 91... Kh5 {[%clk 0:00:20.4]} 92. Rh2+ {[%clk
0:00:16.6]} 92... Kg4 {[%clk 0:00:21.4]} 93. Rg2+ {[%clk 0:00:16.6]} 93... Rg3
{[%clk 0:00:22.2]} 94. Rf2 {[%clk 0:00:13.9]} 94... Kh3 {[%clk 0:00:15.2]} 95.
Rf8 {[%clk 0:00:14.1]} 95... Kg2 {[%clk 0:00:13.4]} 96. Rf2+ {[%clk 0:00:13.5]}
96... Kh1 {[%clk 0:00:12.2]} 97. Rf8 {[%clk 0:00:11.3]} 97... Rg5 {[%clk
0:00:06.7]} 98. Kf2 {[%clk 0:00:08.9]} 98... Rg2+ {[%clk 0:00:05.9]} 99. Kf1
{[%clk 0:00:09.2]} 99... Rh2 {[%clk 0:00:05.9]} 100. Rg8 {[%clk 0:00:09.9]}
100... Rh6 {[%clk 0:00:05.8]} 101. Kf2 {[%clk 0:00:10.6]} 101... Kh2 {[%clk
0:00:07.2]} 102. Kf3 {[%clk 0:00:11.7]} 102... Kh3 {[%clk 0:00:08.6]} 103. Kf2
{[%clk 0:00:12.6]} 103... Kh4 {[%clk 0:00:09.5]} 104. Kg2 {[%clk 0:00:13.4]}
104... g5 {[%clk 0:00:10.9]} 105. Ra8 {[%clk 0:00:14.3]} 105... Rb6 {[%clk
0:00:11.8]} 106. Ra4+ {[%clk 0:00:14.6]} 106... g4 {[%clk 0:00:12.2]} 107. Ra8
{[%clk 0:00:14.2]} 107... Rb2+ {[%clk 0:00:12.9]} 108. Kg1 {[%clk 0:00:15]}
108... Kh3 {[%clk 0:00:13.3]} 109. Ra7 {[%clk 0:00:06.1]} 109... Rb1+ {[%clk
0:00:12.5]} 110. Kf2 {[%clk 0:00:07.6]} 110... g3+ {[%clk 0:00:13.9]} 111. Kf3
{[%clk 0:00:08]} 111... Rf1+ {[%clk 0:00:14.8]} 112. Ke2 {[%clk 0:00:09.2]}
112... Rf8 {[%clk 0:00:15.2]} 0-1

[Event "*** Titled Tuesday 3|2 Blitz"]
[Site "Chess.com"]
[Date "2015.12.01"]
[Round "4"]
[White "olomi007"]
[Black "Tobi-Wan-Kenobi"]
[Result "1-0"]
[WhiteElo "2428"]
[BlackElo "2323"]
[TimeControl "180+2"]
[EndTime "11:45:58 PST"]
[Termination "olomi007 won by resignation"]

1. e4 {[%clk 0:03:01.9]} 1... c5 {[%clk 0:03:00.2]} 2. Nf3 {[%clk 0:03:02.8]}
2... d6 {[%clk 0:03:01.5]} 3. d4 {[%clk 0:03:03.7]} 3... cxd4 {[%clk 0:03:03.4]}
4. Nxd4 {[%clk 0:03:05.2]} 4... Nf6 {[%clk 0:03:04.9]} 5. Nc3 {[%clk 0:03:06.4]}
5... Nc6 {[%clk 0:03:06.5]} 6. Bg5 {[%clk 0:03:06.6]} 6... e6 {[%clk 0:03:08]}
7. Qd2 {[%clk 0:03:07.5]} 7... a6 {[%clk 0:03:09.7]} 8. O-O-O {[%clk 0:03:08.6]}
8... Bd7 {[%clk 0:03:11.2]} 9. f3 {[%clk 0:03:08]} 9... Be7 {[%clk 0:03:09.5]}
10. h4 {[%clk 0:03:08.6]} 10... Nxd4 {[%clk 0:03:10.6]} 11. Qxd4 {[%clk
0:03:09.4]} 11... h6 {[%clk 0:03:12.2]} 12. Be3 {[%clk 0:03:07.6]} 12... h5
{[%clk 0:03:10.3]} 13. Kb1 {[%clk 0:02:59]} 13... Qc7 {[%clk 0:03:10.9]} 14. Qd2
{[%clk 0:02:47.4]} 14... Bc6 {[%clk 0:03:02.3]} 15. Ne2 {[%clk 0:02:45.3]} 15...
b5 {[%clk 0:03:02.5]} 16. Nd4 {[%clk 0:02:46.1]} 16... Bb7 {[%clk 0:03:03.3]}
17. Bd3 {[%clk 0:02:43.4]} 17... Rc8 {[%clk 0:02:49.8]} 18. Rhe1 {[%clk
0:02:38.4]} 18... Nd7 {[%clk 0:02:44.8]} 19. Bg5 {[%clk 0:02:27.5]} 19... Ne5
{[%clk 0:02:40.5]} 20. Bxe7 {[%clk 0:02:23.3]} 20... Qxe7 {[%clk 0:02:42.4]} 21.
f4 {[%clk 0:02:23.3]} 21... Nxd3 {[%clk 0:02:39]} 22. Qxd3 {[%clk 0:02:22.7]}
22... Qxh4 {[%clk 0:02:37.1]} 23. Nf5 {[%clk 0:01:59.1]} 23... exf5 {[%clk
0:02:27.9]} 24. Qxd6 {[%clk 0:01:59.8]} 24... Qe7 {[%clk 0:02:01.3]} 25. exf5
{[%clk 0:01:57.7]} 25... Be4 {[%clk 0:02:02.7]} 26. Rxe4 {[%clk 0:01:54.6]}
26... Qxe4 {[%clk 0:01:56.4]} 27. Qd7+ {[%clk 0:01:55.2]} 27... Kf8 {[%clk
0:01:58.1]} 28. Qxc8+ {[%clk 0:01:55.2]} 28... Ke7 {[%clk 0:02:00]} 29. Qxh8
{[%clk 0:01:43.1]} 1-0

[Event "*** Titled Tuesday 3|2 Blitz"]
[Site "Chess.com"]
[Date "2015.12.01"]
[Round "4"]
[White "gumersindo"]
[Black "RitvarsReimanis"]
[Result "1-0"]
[WhiteElo "2210"]
[BlackElo "2284"]
[TimeControl "180+2"]
[EndTime "11:46:42 PST"]
[Termination "gumersindo won by resignation"]

1. d4 {[%clk 0:03:01.9]} 1... Nf6 {[%clk 0:02:58.9]} 2. c4 {[%clk 0:03:02.8]}
2... g6 {[%clk 0:03:00.2]} 3. Nc3 {[%clk 0:03:03.7]} 3... d5 {[%clk 0:03:01.6]}
4. Bg5 {[%clk 0:03:05.1]} 4... Ne4 {[%clk 0:03:01.8]} 5. Bh4 {[%clk 0:03:05.7]}
5... Nxc3 {[%clk 0:02:55.7]} 6. bxc3 {[%clk 0:03:07.6]} 6... Bg7 {[%clk
0:02:56.3]} 7. e3 {[%clk 0:03:08.6]} 7... c5 {[%clk 0:02:56.3]} 8. Nf3 {[%clk
0:03:09.5]} 8... O-O {[%clk 0:02:56.4]} 9. cxd5 {[%clk 0:03:05.4]} 9... cxd4
{[%clk 0:02:57.5]} 10. cxd4 {[%clk 0:03:04.9]} 10... Qxd5 {[%clk 0:02:57.1]} 11.
Bxe7 {[%clk 0:02:50.7]} 11... Re8 {[%clk 0:02:58.5]} 12. Bh4 {[%clk 0:02:51.1]}
12... Nc6 {[%clk 0:02:56.9]} 13. Be2 {[%clk 0:02:49.5]} 13... Bf5 {[%clk
0:02:17.4]} 14. O-O {[%clk 0:02:48.4]} 14... Nb4 {[%clk 0:02:17.9]} 15. Qb3
{[%clk 0:02:40.7]} 15... Qa5 {[%clk 0:02:11.3]} 16. Rfc1 {[%clk 0:02:34.8]}
16... Nc6 {[%clk 0:01:58.9]} 17. Qxb7 {[%clk 0:02:21.8]} 17... Nb4 {[%clk
0:01:52.8]} 18. Bc4 {[%clk 0:02:12.3]} 18... Nc2 {[%clk 0:01:45.1]} 19. Qxf7+
{[%clk 0:02:09.7]} 19... Kh8 {[%clk 0:01:45.6]} 20. Bf6 {[%clk 0:02:11.2]} 20...
Rg8 {[%clk 0:01:33.3]} 21. Rab1 {[%clk 0:02:07.4]} 21... Nb4 {[%clk 0:01:05.8]}
22. Ng5 {[%clk 0:01:41.2]} 22... Bxb1 {[%clk 0:00:56.4]} 23. Qxg8+ {[%clk
0:01:40.6]} 1-0